bitfinex-derivatives/quotes_SOLF0:USTF0_20241227
["timestamp","ask_amount","ask_price","bid_price","bid_amount"]
[1735304380329,2.6239,190.79,190.77,2.98]
[1735304381728,2.6241,190.78,190.75,2.6244]
[1735304381931,8.47092148,190.79,190.73,2.6246]
[1735304382936,2.6242,190.77,190.73,2.6246]
[1735304383435,11.09512148,190.77,190.73,2.6246]
[1735304384135,11.09512148,190.77,190.72,5.6048]
[1735304386340,11.09512148,190.77,190.72,2.6248]
[1735304388941,8.47092148,190.77,190.73,2.6247]
[1735304389239,8.47092148,190.81,190.73,8.47092148]
[1735304389437,8.47092148,190.81,190.75,8.47092148]
[1735304390444,11.09462148,190.81,190.76,2.6242]
[1735304391245,11.09462148,190.81,190.77,2.6242]
[1735304391942,2.6233,190.84,190.77,5.6041]
[1735304392139,8.47092148,190.84,190.77,11.45092148]
[1735304392343,8.47092148,190.86,190.79,8.47092148]
[1735304392742,8.47092148,190.86,190.81,2.6236]
[1735304394539,11.09392148,190.86,190.81,2.6236]
[1735304394735,11.09392148,190.86,190.82,2.6235]
[1735304400250,11.09412148,190.84,190.8,2.6238]
[1735304400841,8.47092148,190.84,190.78,4.5672]
[1735304401143,11.09442148,190.82,190.78,5.6039]
[1735304401648,11.09442148,190.82,190.78,2.6239]
[1735304402347,8.47092148,190.82,190.78,2.6239]
[1735304402540,1.5912,190.89,190.8,2.6237]
[1735304402744,8.47092148,190.84,190.77,8.47092148]
[1735304403341,8.47092148,190.84,190.81,2.6236]
[1735304404248,21.77865799,190.92,190.81,11.45092148]
[1735304404552,8.47092148,190.9,190.83,8.47092148]
[1735304405348,8.47092148,190.9,190.85,2.6231]
[1735304407149,302.79529699,191.13,190.86,2.98]
[1735304407343,8.47092148,190.92,190.86,2.98]
[1735304407552,8.47092148,190.9,190.86,2.98]
[1735304407749,8.47092148,190.92,190.86,2.98]
[1735304408549,8.47092148,190.9,190.86,2.98]
[1735304409445,2.6223,190.91,190.86,2.98]
[1735304409652,2.6223,190.91,190.86,5.6029]
[1735304410253,8.47092148,190.92,190.88,2.6226]
[1735304410452,8.47092148,190.94,190.86,2.98]
[1735304411559,8.47092148,190.94,190.89,2.6225]
[1735304412054,11.09282148,190.94,190.88,2.6227]
[1735304414050,11.09282148,190.94,190.89,2.6225]
[1735304415257,11.09282148,190.94,190.87,8.47092148]
[1735304415258,8.47092148,190.94,190.91,2.6222]
[1735304415459,8.47092148,190.96,190.89,8.47092148]
[1735304415960,8.47092148,190.96,190.92,2.622]
[1735304416160,5.8243,190.99,190.91,2.98]
[1735304416357,8.47092148,190.98,190.91,11.45092148]
[1735304416857,14.29522148,190.99,190.91,11.45092148]
[1735304417158,8.47092148,190.97,190.91,11.45092148]
[1735304419562,8.47092148,190.97,190.93,2.622]
[1735304424562,8.47092148,190.97,190.91,11.45092148]
[1735304424765,21.79390653,191.11,190.95,8.47092148]
[1735304424958,8.47092148,191.02,190.95,8.47092148]
[1735304425157,8.47092148,191.02,190.96,2.98]
[1735304425561,4.5988,191.06,190.96,2.98]
[1735304425757,8.47092148,191.03,190.96,2.98]
[1735304426165,2.6207,191.03,190.97,2.6214]
[1735304426564,11.09162148,191.03,190.97,2.6214]
[1735304428168,8.47092148,191.01,190.96,5.6016]
[1735304428368,8.47092148,191.01,190.96,2.98]
[1735304428968,11.09192148,191.01,190.96,2.98]
[1735304429766,8.47092148,191.01,190.96,5.6015]
[1735304429969,8.47092148,191.01,190.96,2.98]
[1735304430764,8.47092148,191.03,190.96,11.45092148]
[1735304431564,8.47092148,191.03,190.98,2.6213]
[1735304433664,8.47092148,191.03,190.99,2.6211]
[1735304434270,2.6208,191.02,190.97,2.6214]
[1735304435973,11.09152148,191.03,190.98,2.6213]
[1735304439672,1.5349,191.06,191.0,8.47092148]
[1735304440172,1.5349,191.06,191.03,2.6206]
[1735304440566,2.62,191.08,191.01,2.98]
[1735304440774,11.09092148,191.08,191.04,2.6205]
[1735304441172,2.6201,191.07,191.03,2.6206]
[1735304442476,2.6202,191.06,191.02,2.6206]
[1735304442673,37.81700317,191.1,191.01,11.45092148]
[1735304442879,8.47092148,191.07,191.01,11.45092148]
[1735304443477,11.09102148,191.07,191.03,2.6206]
[1735304443677,11.09102148,191.07,191.01,11.45092148]
[1735304444181,11.09102148,191.07,191.02,2.6207]
[1735304445270,2.6203,191.06,191.02,2.6207]
[1735304445475,8.47092148,191.05,191.01,2.6209]
[1735304445781,8.47092148,191.05,190.99,2.98]
[1735304445978,8.47092148,191.05,190.98,8.47092148]
[1735304446580,2.6206,191.03,190.99,2.6211]
[1735304448981,2.6206,191.03,190.98,11.09222148]
[1735304449478,11.09182148,191.01,190.96,2.6215]
[1735304450273,3.2083,191.04,190.93,8.47092148]
[1735304450477,8.47092148,190.99,190.93,8.47092148]
[1735304450677,2.6216,190.97,190.91,2.6221]
[1735304450880,11.09252148,190.97,190.91,5.6021]
[1735304451082,11.09252148,190.97,190.91,14.07302148]
[1735304451282,11.09252148,190.97,190.92,2.6221]
[1735304451873,2.6216,190.96,190.9,2.6223]
[1735304452079,2.6216,190.96,190.9,14.07322148]
[1735304452274,2.6216,190.96,190.9,11.09322148]
[1735304452880,2.6216,190.96,190.89,2.98]
[1735304452881,8.47092148,190.97,190.89,2.98]
[1735304453182,11.09232148,190.97,190.92,2.6221]
[1735304454185,8.47092148,190.97,190.93,2.6219]
[1735304454782,2.6212,190.99,190.93,2.6219]
[1735304454982,8.47092148,190.98,190.93,2.6219]
[1735304455182,11.09232148,190.98,190.93,2.6219]
[1735304455379,8.47092148,190.98,190.9,8.47092148]
[1735304455583,8.47092148,190.98,190.92,2.6221]
[1735304455783,2.6218,190.95,190.83,63.64327882]
[1735304456086,2.6218,190.95,190.89,8.47092148]
[1735304456281,2.6218,190.95,190.89,11.45092148]
[1735304456482,2.6218,190.95,190.9,2.6223]
[1735304457590,8.47092148,190.94,190.83,61.26983566]
[1735304457887,8.47092148,190.92,190.86,8.47092148]
[1735304458183,2.6227,190.88,190.84,8.47092148]
[1735304458386,8.47092148,190.9,190.83,11.45092148]
[1735304458987,8.47092148,190.9,190.86,2.6229]
[1735304460887,1.5913,190.96,190.88,2.6227]
[1735304461091,8.47092148,190.93,190.86,8.47092148]
[1735304461488,8.47092148,190.93,190.89,2.6225]
[1735304462394,8.47092148,190.93,190.86,8.47092148]
[1735304462590,8.47092148,190.91,190.83,2.98]
[1735304462789,8.47092148,190.91,190.84,8.47092148]
[1735304462991,11.09322148,190.91,190.85,2.623]
[1735304463297,8.47092148,190.91,190.84,8.47092148]
[1735304463600,8.47092148,190.89,190.76,3.3432]
[1735304463788,8.47092148,190.89,190.82,8.47092148]
[1735304463991,8.47092148,190.87,190.8,8.47092148]
[1735304464494,8.47092148,190.85,190.79,11.45092148]
[1735304464795,8.47092148,190.87,190.79,11.45092148]
[1735304464991,8.47092148,190.85,190.79,11.45092148]
[1735304465396,11.09412148,190.85,190.79,14.07482148]
[1735304465693,8.47092148,190.85,190.77,11.45092148]
[1735304465895,2.6234,190.83,190.77,11.45092148]
[1735304466096,8.47092148,190.81,190.72,1.5978]
[1735304466292,8.47092148,190.81,190.75,2.98]
[1735304467399,11.09462148,190.81,190.75,5.6044]
[1735304468197,2.6237,190.81,190.75,5.6044]
[1735304468401,2.6237,190.81,190.75,2.6244]
[1735304468893,2.6237,190.81,190.74,2.98]
[1735304469104,2.6237,190.81,190.76,2.6243]
[1735304469897,16.38281822,190.84,190.77,2.6242]
[1735304470098,2.6235,190.82,190.77,2.6242]
[1735304470698,16.38281822,190.84,190.74,2.98]
[1735304471597,19.00601822,190.84,190.74,2.98]
[1735304471798,16.38281822,190.84,190.74,2.98]
[1735304473100,19.00611822,190.84,190.74,2.98]
[1735304473699,19.00611822,190.84,190.78,2.6239]
[1735304474001,16.38281822,190.84,190.78,2.6239]
[1735304474203,2.6234,190.83,190.78,2.6239]
[1735304474497,16.38281822,190.84,190.74,2.98]
[1735304475403,2.6235,190.82,190.77,2.624]
[1735304477607,16.38281822,190.84,190.74,2.98]
[1735304478205,19.00601822,190.84,190.79,2.6238]
[1735304481108,2.6235,190.82,190.77,2.6242]
[1735304481313,16.38281822,190.84,190.77,2.6242]
[1735304482012,2.6236,190.82,190.77,2.6242]
[1735304482506,16.38281822,190.84,190.77,2.6242]
[1735304482712,16.38281822,190.84,190.75,2.6244]
[1735304483302,2.6238,190.8,190.75,2.6244]
[1735304483714,2.6238,190.8,190.76,2.6243]
[1735304484214,16.38281822,190.84,190.74,2.98]
[1735304484412,2.6236,190.81,190.77,2.6241]
[1735304484714,2.6236,190.81,190.74,2.98]
[1735304484915,2.6238,190.8,190.76,2.6243]
[1735304486918,2.6239,190.79,190.75,2.6245]
[1735304487413,2.6242,190.78,190.73,2.6246]
[1735304488214,8.4551216,190.76,190.73,2.6246]
[1735304488414,8.4551216,190.74,190.72,2.6248]
[1735304490420,8.4551216,190.76,190.71,8.4551216]
[1735304491022,8.4551216,190.74,190.69,2.98]
[1735304491421,8.4551216,190.76,190.69,2.98]
[1735304492022,2.6238,190.8,190.76,2.6243]
[1735304492222,8.4551216,190.79,190.76,2.6243]
[1735304493824,8.4551216,190.79,190.72,8.4551216]
[1735304494023,8.4551216,190.79,190.75,2.6244]
[1735304494718,8.4551216,190.77,190.75,2.6244]
[1735304494923,8.4551216,190.77,190.72,2.6249]
[1735304495126,8.4551216,190.75,190.7,4.6408]
[1735304496422,8.4551216,190.75,190.72,2.6248]
[1735304497418,8.4551216,190.75,190.73,2.6247]
[1735304497620,8.4551216,190.75,190.7,4.6408]
[1735304498522,8.4551216,190.75,190.72,2.6249]
[1735304508333,11.0793216,190.77,190.72,2.6249]
[1735304510227,2.6239,190.8,190.72,8.4551216]
[1735304510420,8.4551216,190.8,190.72,8.4551216]
[1735304511031,8.4551216,190.8,190.76,2.6243]
[1735304511231,8.4551216,190.81,190.74,8.4551216]
[1735304511530,8.4551216,190.84,190.78,8.4551216]
[1735304511730,58.1170841,190.88,190.8,8.4551216]
[1735304512031,8.4551216,190.87,190.8,11.4351216]
[1735304512231,8.4551216,190.87,190.84,2.6232]
[1735304514633,8.4551216,190.87,190.82,2.6234]
[1735304515931,8.4551216,190.85,190.82,2.6234]
[1735304516931,8.4551216,190.83,190.8,2.98]
[1735304517136,8.4551216,190.81,190.76,8.4551216]
[1735304517337,8.4551216,190.83,190.76,11.4351216]
[1735304518531,8.4551216,190.83,190.78,2.624]
[1735304520343,8.4551216,190.83,190.79,2.6239]
[1735304520837,8.4551216,190.83,190.76,11.4351216]
[1735304521141,8.4551216,190.81,190.77,2.6241]
[1735304521340,8.4551216,190.81,190.74,8.4551216]
[1735304521542,2.6238,190.8,190.75,5.6044]
[1735304521737,2.6238,190.8,190.75,2.6244]
[1735304522335,8.4551216,190.79,190.75,2.6244]
[1735304522544,8.4551216,190.77,190.73,2.6246]
[1735304522740,8.4551216,190.77,190.71,2.98]
[1735304523139,11.0793216,190.77,190.71,5.6049]
[1735304524138,8.4551216,190.75,190.7,2.6251]
[1735304524334,8.4551216,190.75,190.69,2.98]
[1735304524538,4.9037,190.82,190.69,2.98]
[1735304524843,8.4551216,190.85,190.78,8.4551216]
[1735304525039,8.4551216,190.85,190.79,2.98]
[1735304525437,8.4551216,190.85,190.82,2.6234]
[1735304526146,2.6229,190.87,190.81,2.6236]
[1735304528047,2.6229,190.87,190.82,2.6234]
[1735304528242,13.19897609,190.88,190.82,2.6234]
[1735304528843,15.82177609,190.88,190.82,2.6234]
[1735304529044,13.19897609,190.88,190.82,2.6234]
[1735304529649,2.6229,190.87,190.82,2.6234]
[1735304530947,15.82167609,190.88,190.84,2.6232]
[1735304542162,2.6228,190.87,190.84,2.6232]
[1735304543062,2.6229,190.86,190.82,2.6234]
[1735304545963,2.6232,190.84,190.81,2.6236]
[1735304546761,2.6232,190.84,190.8,2.98]
[1735304546962,2.6232,190.84,190.8,5.6037]
[1735304547261,2.6235,190.83,190.77,1.6792]
[1735304547562,2.6235,190.83,190.77,2.98]
[1735304547959,2.6235,190.83,190.78,2.6239]
[1735304548166,8.45003698,190.82,190.78,2.6239]
[1735304548361,2.6235,190.83,190.77,11.43003698]
[1735304548554,2.6235,190.83,190.79,2.6239]
[1735304550061,8.45003698,190.82,190.79,2.6239]
[1735304551666,2.6236,190.81,190.77,5.6041]
[1735304551863,3.2102,190.9,190.74,2.98]
[1735304551864,8.45003698,190.8,190.74,2.98]
[1735304552261,11.07383698,190.8,190.75,2.6244]
[1735304556969,2.6239,190.79,190.74,2.6246]
[1735304557869,11.07413698,190.78,190.74,2.6246]
[1735304558072,8.45003698,190.76,190.73,2.6247]
[1735304558266,8.45003698,190.76,190.72,2.98]
[1735304558473,8.45003698,190.76,190.68,8.45003698]
[1735304558773,8.45003698,190.76,190.71,2.625]
[1735304559269,8.45003698,190.74,190.7,2.6251]
[1735304559470,8.45003698,190.72,190.66,6.00082764]
[1735304559773,8.45003698,190.72,190.67,2.98]
[1735304559974,8.45003698,190.72,190.69,2.6253]
[1735304560168,8.45003698,190.72,190.67,2.98]
[1735304560776,8.45003698,190.72,190.66,4.2709]
[1735304560977,8.45003698,190.7,190.66,2.6256]
[1735304562281,11.07523698,190.7,190.65,2.6258]
[1735304562474,8.45003698,190.68,190.63,2.98]
[1735304562877,8.45003698,190.68,190.64,2.626]
[1735304563784,8.45003698,190.68,190.62,2.6261]
[1735304563976,8.45003698,190.68,190.61,7.7364]
[1735304564177,2.98,190.75,190.64,8.45003698]
[1735304564386,8.45003698,190.72,190.64,8.45003698]
[1735304565183,8.45003698,190.72,190.69,2.6253]
[1735304568985,8.45003698,190.72,190.67,2.6255]
[1735304569281,8.45003698,190.72,190.66,2.98]
[1735304570383,8.45003698,190.72,190.68,2.6253]
[1735304570980,8.45003698,190.74,190.66,2.98]
[1735304571284,8.45003698,190.77,190.7,8.45003698]
[1735304571485,8.45003698,190.77,190.71,2.98]
[1735304571686,8.45003698,190.79,190.72,8.45003698]
[1735304572083,8.45003698,190.79,190.72,10.06533698]
[1735304572687,8.45003698,190.81,190.78,2.624]
[1735304572885,8.45003698,190.83,190.77,2.98]
[1735304573190,8.45003698,190.85,190.81,2.6235]
[1735304573391,8.45003698,190.85,190.78,8.45003698]
[1735304573680,8.45003698,190.83,190.77,2.98]
[1735304574681,8.45003698,190.83,190.78,2.6239]
[1735304575483,8.45003698,190.83,190.79,2.6239]
[1735304575980,2.6231,190.85,190.77,2.98]
[1735304575981,8.45003698,190.85,190.81,2.6236]
[1735304576783,8.45003698,190.85,190.78,8.45003698]
[1735304577186,8.45003698,190.85,190.82,2.6234]
[1735304578389,8.45003698,190.85,190.81,2.6236]
[1735304579886,8.45003698,190.85,190.78,8.45003698]
[1735304579887,8.45003698,190.85,190.79,2.6238]
[1735304580086,8.45003698,190.83,190.79,2.6238]
[1735304580288,8.45003698,190.81,190.78,2.98]
[1735304580484,8.45003698,190.81,190.74,8.45003698]
[1735304580793,8.45003698,190.79,190.74,2.98]
[1735304581490,8.45003698,190.79,190.75,2.6245]
[1735304582287,8.45003698,190.79,190.73,3.2207]
[1735304582493,8.45003698,190.77,190.73,5.6046]
[1735304583496,8.45003698,190.77,190.73,2.6246]
[1735304583696,8.45003698,190.77,190.72,2.98]
[1735304583894,8.45003698,190.77,190.71,2.98]
[1735304584396,8.45003698,190.75,190.72,2.6249]
[1735304585393,8.45003698,190.77,190.74,2.6246]
[1735304585598,8.45003698,190.77,190.7,11.43003698]
[1735304585798,8.45003698,190.77,190.72,2.6249]
[1735304586294,8.45003698,190.75,190.68,8.45003698]
[1735304586492,8.45003698,190.75,190.7,2.98]
[1735304586895,8.45003698,190.75,190.72,2.6247]
[1735304587495,8.45003698,190.75,190.71,2.625]
[1735304588495,8.45003698,190.73,190.67,4.9096]
[1735304588704,8.45003698,190.73,190.69,2.6251]
[1735304590198,8.45003698,190.71,190.69,2.6251]
[1735304592908,8.45003698,190.73,190.69,2.6251]
[1735304595808,8.45003698,190.73,190.66,8.45003698]
[1735304596009,8.45003698,190.71,190.68,2.6254]
[1735304598311,8.45003698,190.71,190.64,8.45003698]
[1735304598509,8.45003698,190.69,190.66,2.6256]
[1735304599104,8.45003698,190.69,190.65,3.0]
[1735304599812,2.6255,190.68,190.62,2.6261]
[1735304600011,2.6255,190.68,190.62,5.6261]
[1735304600210,8.45003698,190.67,190.62,5.6261]
[1735304600511,8.45003698,190.67,190.63,2.6261]
[1735304602509,11.07563698,190.67,190.62,2.6262]
[1735304603510,8.45003698,190.65,190.62,2.6262]
[1735304607010,11.07563698,190.67,190.62,2.6262]
[1735304609314,8.45003698,190.65,190.61,2.6263]
[1735304610006,8.45003698,190.65,190.59,3.0]
[1735304610415,8.45003698,190.63,190.59,3.0]
[1735304611421,8.45003698,190.63,190.6,2.6264]
[1735304612411,8.45003698,190.61,190.54,8.45003698]
[1735304612615,8.45003698,190.61,190.55,3.0]
[1735304612815,11.07653698,190.61,190.56,2.6271]
[1735304613327,8.45003698,190.59,190.54,3.0]
[1735304614526,8.45003698,190.59,190.54,5.6273]
[1735304614716,8.45003698,190.59,190.54,3.0]
[1735304614924,8.45003698,190.59,190.54,2.6273]
[1735304615628,8.45003698,190.59,190.55,2.6272]
[1735304617322,8.45003698,190.59,190.53,5.6274]
[1735304617524,8.45003698,190.57,190.53,5.6274]
[1735304619829,8.45003698,190.55,190.53,3.0]
[1735304620332,8.45003698,190.55,190.51,2.6276]
[1735304622926,8.45003698,190.55,190.49,8.45003698]
[1735304623130,8.45003698,190.55,190.52,2.6276]
[1735304623834,6.284,190.64,190.51,8.45003698]
[1735304623835,3.284,190.64,190.51,8.45003698]
[1735304624034,8.45003698,190.58,190.55,2.6272]
[1735304625230,8.45003698,190.56,190.55,2.6272]
[1735304625535,8.45003698,190.56,190.53,2.6274]
[1735304627138,8.45003698,190.56,190.54,2.6273]
[1735304627741,8.45003698,190.58,190.54,2.6273]
[1735304628138,8.45003698,190.58,190.53,2.6274]
[1735304628337,6.264,190.64,190.52,8.45003698]
[1735304628538,8.45003698,190.6,190.52,8.45003698]
[1735304628930,8.45003698,190.6,190.57,2.6268]
[1735304629130,8.45003698,190.58,190.57,2.6268]
[1735304635143,2.6263,190.62,190.57,2.6268]
[1735304635342,8.45003698,190.6,190.57,2.6268]
[1735304641545,8.45003698,190.59,190.57,2.6268]
[1735304644455,8.45003698,190.59,190.58,2.6268]
[1735304644754,1.6318,190.64,190.54,11.43003698]
[1735304644950,8.45003698,190.62,190.54,11.43003698]
[1735304646556,8.45003698,190.62,190.6,2.6264]
[1735304647753,8.45003698,190.63,190.6,2.6264]
[1735304648260,55.92335229,190.69,190.59,2.98]
[1735304648261,52.94335229,190.69,190.59,2.98]
[1735304648448,8.45003698,190.66,190.6,2.98]
[1735304649853,1.6561,190.71,190.6,11.43003698]
[1735304650060,8.45003698,190.68,190.62,8.45003698]
[1735304650255,8.45003698,190.68,190.66,2.6256]
[1735304650455,8.45003698,190.7,190.65,2.98]
[1735304650856,8.45003698,190.68,190.65,2.98]
[1735304651755,8.45003698,190.68,190.65,5.6058]
[1735304652060,8.45003698,190.7,190.65,2.98]
[1735304652564,8.45003698,190.7,190.67,2.6255]
[1735304654556,8.45003698,190.7,190.65,2.98]
[1735304654763,8.45003698,190.7,190.68,2.6253]
[1735304656862,8.45003698,190.7,190.69,2.6253]
[1735304657365,8.45003698,190.7,190.68,2.6254]
[1735304658070,8.45003698,190.7,190.65,2.98]
[1735304658265,8.45003698,190.72,190.69,2.6253]
[1735304658467,8.45003698,190.74,190.68,8.45003698]
[1735304660163,8.45003698,190.74,190.66,8.45003698]
[1735304660567,8.45003698,190.74,190.71,2.6249]
[1735304662064,8.45003698,190.74,190.7,2.98]
[1735304662762,8.45003698,190.74,190.72,2.6248]
[1735304664763,8.45003698,190.74,190.7,2.98]
[1735304664966,1.5454,190.82,190.7,11.43003698]
[1735304665171,8.45003698,190.79,190.72,8.45003698]
[1735304665574,8.45003698,190.81,190.74,8.45003698]
[1735304665769,8.45003698,190.81,190.75,2.98]
[1735304665974,8.45003698,190.81,190.78,2.624]
[1735304667477,8.45003698,190.81,190.79,2.6239]
[1735304668672,53.19226364,190.87,190.75,2.98]
[1735304668877,55.81506364,190.87,190.81,2.6236]
[1735304669073,8.45003698,190.83,190.81,2.6236]
[1735304670584,8.45003698,190.83,190.76,8.45003698]
[1735304672781,8.45003698,190.83,190.79,2.6238]
[1735304673583,8.45003698,190.81,190.75,2.98]
[1735304674380,8.45003698,190.81,190.74,8.45003698]
[1735304674591,8.45003698,190.77,190.73,2.98]
[1735304675285,8.45003698,190.77,190.65,43.26808973]
[1735304675286,8.45003698,190.75,190.72,2.98]
[1735304675481,8.45003698,190.75,190.67,8.45003698]
[1735304675678,8.45003698,190.75,190.68,2.98]
[1735304676086,8.45003698,190.75,190.7,2.625]
[1735304676285,8.45003698,190.75,190.69,8.45003698]
[1735304677182,8.45003698,190.75,190.72,2.6248]
[1735304677575,8.45003698,190.75,190.73,2.6247]
[1735304677781,8.45003698,190.77,190.73,2.98]
[1735304678082,8.45003698,190.79,190.73,2.98]
[1735304678274,8.45003698,190.79,190.73,11.43003698]
[1735304678480,8.45003698,190.82,190.75,8.45003698]
[1735304679685,8.45003698,190.82,190.8,2.6237]
[1735304680186,8.45003698,190.82,190.78,2.98]
[1735304680383,8.45003698,190.82,190.78,5.604]
[1735304682489,8.45003698,190.82,190.79,2.6239]
[1735304685191,8.45003698,190.84,190.81,2.6236]
[1735304685394,4.1683,190.87,190.78,2.98]
[1735304685687,8.45003698,190.85,190.78,2.98]
[1735304686485,8.45003698,190.85,190.82,2.6234]
[1735304688189,8.45003698,190.85,190.83,2.6233]
[1735304688490,59.65994402,190.95,190.83,3.0]
[1735304688692,8.45003698,190.89,190.83,11.45003698]
[1735304688895,8.45003698,190.91,190.83,11.45003698]
[1735304689286,8.45003698,190.91,190.85,2.623]
[1735304689592,8.45003698,190.91,190.83,11.45003698]
[1735304689787,8.45003698,190.89,190.84,2.6231]
[1735304690087,8.45003698,190.89,190.83,11.45003698]
[1735304691593,8.45003698,190.89,190.86,2.6229]
[1735304697894,8.45003698,190.89,190.84,2.6231]
[1735304698094,8.45003698,190.89,190.83,11.45003698]
[1735304700390,8.45003698,190.87,190.75,3.2527]
[1735304700595,8.45003698,190.87,190.79,8.45003698]
[1735304701199,8.45003698,190.87,190.83,2.6234]
[1735304702603,8.45003698,190.85,190.81,3.0]
[1735304702800,8.45003698,190.83,190.75,11.70273698]
[1735304703005,8.45003698,190.81,190.76,3.0]
[1735304703200,8.45003698,190.79,190.76,3.0]
[1735304703399,11.07403698,190.79,190.76,3.0]
[1735304703598,8.45003698,190.77,190.72,2.6248]
[1735304703802,8.45003698,190.77,190.7,45.94263794]
[1735304704001,8.45003698,190.75,190.7,48.94263794]
[1735304704703,4.8666,190.85,190.7,48.94263794]
[1735304704903,8.45003698,190.75,190.7,51.56773794]
[1735304705102,8.45003698,190.75,190.7,5.6251]
[1735304706512,8.45003698,190.73,190.68,2.6253]
[1735304706704,8.45003698,190.73,190.67,3.0]
[1735304707108,8.45003698,190.73,190.67,5.6255]
[1735304707109,11.07483698,190.73,190.67,5.6255]
[1735304707907,8.45003698,190.73,190.67,5.6255]
[1735304710006,11.07483698,190.73,190.67,5.6255]
[1735304710205,8.45003698,190.73,190.67,2.6255]
[1735304717222,8.45003698,190.73,190.68,2.6253]
[1735304718318,8.45003698,190.69,190.63,1.5424]
[1735304718623,8.45003698,190.69,190.63,3.02]
[1735304718824,8.45003698,190.67,190.62,2.6262]
[1735304720123,8.45003698,190.67,190.63,2.6261]
[1735304721026,8.45003698,190.67,190.61,11.47003698]
[1735304721921,8.45003698,190.67,190.62,2.6261]
[1735304722115,8.45003698,190.67,190.61,11.47003698]
[1735304723030,8.45003698,190.67,190.63,2.6261]
[1735304724624,8.45003698,190.67,190.59,8.45003698]
[1735304724831,8.45003698,190.67,190.62,2.6262]
[1735304725026,8.45003698,190.67,190.6,3.02]
[1735304725027,8.45003698,190.65,190.58,1.6022]
[1735304725228,8.45003698,190.65,190.59,3.02]
[1735304725423,8.45003698,190.65,190.59,2.6265]
[1735304726125,8.45003698,190.63,190.59,2.6265]
[1735304727126,8.45003698,190.63,190.57,2.6268]
[1735304727325,8.45003698,190.61,190.57,2.6268]
[1735304728727,3.1773,190.67,190.56,8.45003698]
[1735304728931,8.45003698,190.65,190.58,8.45003698]
[1735304729433,8.45003698,190.65,190.6,2.6264]
[1735304730035,8.45003698,190.65,190.59,2.6266]
[1735304730036,11.07593698,190.65,190.59,2.6266]
[1735304730226,8.45003698,190.63,190.59,2.6266]
[1735304733530,2.6263,190.62,190.57,5.6469]
[1735304733734,8.45003698,190.61,190.54,11.47003698]
[1735304735130,8.45003698,190.61,190.56,2.6271]
[1735304737427,2.6265,190.6,190.54,5.6472]
[1735304737630,2.6265,190.6,190.54,2.6272]
[1735304738932,8.45003698,190.59,190.5,4.8174]
[1735304739135,8.45003698,190.57,190.53,2.6275]
[1735304739330,8.45003698,190.57,190.51,3.02]
[1735304740434,8.45003698,190.57,190.52,2.6275]
[1735304744142,11.07703698,190.57,190.52,2.6275]
[1735304744638,8.45003698,190.57,190.52,2.6275]
[1735304744935,11.07703698,190.57,190.52,2.6275]
[1735304745330,8.45003698,190.57,190.51,2.6278]
[1735304745534,2.6271,190.56,190.51,2.6278]
[1735304745834,8.45003698,190.55,190.51,2.6278]
[1735304746030,2.6268,190.58,190.53,2.6275]
[1735304746231,8.45003698,190.56,190.49,11.47003698]
[1735304747431,8.45003698,190.56,190.53,2.6275]
[1735304751941,2.6265,190.61,190.57,2.6269]
[1735304752244,8.45003698,190.59,190.57,2.6269]
[1735304752431,2.6265,190.61,190.57,2.6269]
[1735304752638,8.45003698,190.59,190.58,2.6268]
[1735304752842,2.6262,190.62,190.58,2.6268]
[1735304753042,8.45003698,190.6,190.58,2.6268]
[1735304755138,8.45003698,190.6,190.54,8.45003698]
[1735304755344,8.45003698,190.6,190.57,2.6269]
[1735304756245,2.6261,190.63,190.59,2.6267]
[1735304756434,8.45003698,190.64,190.58,3.02]
[1735304757454,8.45003698,190.64,190.6,2.6264]
[1735304757747,8.45003698,190.64,190.58,11.47003698]
[1735304758344,8.45003698,190.64,190.62,2.6262]
[1735304758544,8.45003698,190.64,190.58,11.47003698]
[1735304758754,8.45003698,190.64,190.58,3.02]
[1735304759047,8.45003698,190.64,190.6,2.6265]
[1735304759250,8.45003698,190.64,190.58,3.02]
[1735304759545,8.45003698,190.64,190.59,2.6265]
[1735304759750,8.45003698,190.64,190.58,3.02]
[1735304760548,1.6555,190.67,190.58,3.02]
[1735304760751,8.45003698,190.65,190.58,3.02]